Cogmind - Beta 13 @@@ ROGUE MODE // 2024.06.04 @ 23:13:13 Player: vilepis Result: Destroyed by RS-AOM(R) with Subdweller Beam Cannon Performance ------------- Evolutions (0) 0 Regions Visited (2) 400 Robots Destroyed (17) 85 Value Destroyed (324) 324 Prototype IDs (2) 40 Alien Tech Used (0) 0 Bonus (0) 0 TOTAL SCORE: 849 Bonus ------- None Cogmind --------- Core Integrity 0/250 Matter 11/450 Energy 253/265 System Corruption 0% Temperature Cool (9) Movement Core (250) Ox4 Location -10/Subcaves Parts ------- > --- POWER (1) -------- Improved Ion Engine > --- PROPULSION (2) --- (None) > --- UTILITY (2) ------ Large Matter Pod Signal Interpreter > --- WEAPON (2) ------- Beam Cannon > --- INVENTORY (5) ---- Improved Ion Engine Sensor Array Grenade Launcher Peak State ------------ > --- POWER ------------ Improved Ion Engine > --- PROPULSION ------- Wheel Compact Wheel > --- UTILITY ---------- Small Storage Unit Large Matter Pod > --- WEAPON ----------- Autogun Autogun > --- INVENTORY -------- Improved Ion Engine Light Treads Light Treads Compact Wheel EM Shotgun Medium Laser Assault Rifle Grenade Launcher [Rating: 11] Favorites ----------- Power Improved Ion Engine Engine Improved Ion Engine Propulsion Compact Wheel Wheel Compact Wheel Utility Large Matter Pod Storage Large Matter Pod Processor Signal Interpreter Weapon Autogun Energy Gun Medium Laser Energy Cannon Beam Cannon Ballistic Gun Autogun Build | -11 -10 -10 ------- Run | Yrd Mat Sub Slots Evolved . | . . . Power . | . . . Propulsion . | . . . Utility . | . . . Weapon . | . . . Parts Attached 19 | 7 11 1 Power 4 | 1 3 . Engine 4 | 1 3 . Core . | . . . Reactor . | . . . Propulsion 5 | 2 3 . Treads . | . . . Leg . | . . . Wheel 5 | 2 3 . Hover . | . . . Flight . | . . . Utility 3 | 1 2 . Device . | . . . Storage 2 | 1 1 . Processor 1 | . 1 . Hackware . | . . . Protection . | . . . Artifact . | . . . Weapon 7 | 3 3 1 Energy Gun 1 | 1 . . Energy Cannon 1 | . . 1 Ballistic Gun 5 | 2 3 . Ballistic Cannon . | . . . Launcher . | . . . Special Weapon . | . . . Impact Weapon . | . . . Slashing Weapon . | . . . Piercing Weapon . | . . . Special Melee Weapon . | . . . Unidentified Prototypes . | . . . Parts Lost 4 | . . 4 Power . | . . . Propulsion 2 | . . 2 Utility . | . . . Weapon 2 | . . 2 Highest Loss Streak 4 | . . 4 To Critical Strikes . | . . . Average Slot Usage (%) 96 | . 97 92 Engine 13 | . 13 14 Wheel 26 | . 27 22 Storage 16 | . 17 14 Processor 10 | . 9 14 Energy Gun 2 | . 3 . Ballistic Gun 24 | . 24 24 Naked Turns . | . . . Heaviest Build 21 | 12 21 16 Greatest Support 32 | 26 32 32 Greatest Overweight (x) 1 | . 1 . Average Overweight (x) . | . . . Largest Inventory Capacity 8 | 8 8 5 Average Capacity 5 | 6 5 5 Most Carried 8 | 3 8 5 Average Carried 4 | 1 4 4 Final Capacity 8 | 8 5 5 Final Carried 5 | 3 5 5 Class Distribution -------------------- 100% | Mutant Dominant Class ---------------- Mutant | -10/Materials Mutant | -10/Subcaves Resources | -11 -10 -10 ----------- Run | Yrd Mat Sub Matter Collected 444 | 145 215 84 Remotely . | . . . Salvage Created 370 | . 245 125 Parts 31 | . 20 11 Haulers Intercepted . | . . . Recyclers Shooed . | . . . Parts Field Recycled . | . . . Retrieved Matter . | . . . Parts Self-Destructed 10 | . . 10 Prevented . | . . . Kills | -11 -10 -10 ------- Run | Yrd Mat Sub Combat Hostiles Destroyed 14 | . 7 7 Guns 14 | . 7 7 Classes Destroyed 4 | . 3 1 Watcher 3 | . 3 . Swarmer 9 | . 3 6 Grunt 4 | . 4 . Subdweller 1 | . . 1 Best Kill Streak 4 | . 3 4 Combat Bots Only 4 | . 3 4 Max Kills in Single Turn 2 | . 1 2 Gunslinging 1 | . . 1 Exploded . | . . . Melee . | . . . Uniques/NPCs Destroyed . | . . . Combat | -11 -10 -10 -------- Run | Yrd Mat Sub Hostile Shots Fired 93 | . 37 56 Missed 25 | . 9 16 Damage Taken 854 | . 298 556 Core 275 | . 26 249 Absorbed by Shields . | . . . Regen/Repaired (Parts) 55 | . 55 . Core Remaining (%) 100 | 100 . . Volleys Fired 58 | . 35 23 Largest 2 | . 2 2 Hottest 83 | . 70 83 Shots Fired 107 | . 70 37 Gun 102 | . 70 32 Cannon 5 | . . 5 Launcher . | . . . Special . | . . . Kinetic 93 | . 61 32 Thermal 14 | . 9 5 Explosive . | . . . Electromagnetic . | . . . Robot Hit Streak 10 | . 6 10 Robot Miss Streak 5 | . 5 3 Penetration Max . | . . . Secondary Targets 4 | . 2 2 Max Gunslinging Chain 1 | . 1 1 Shots Hit Robots 60 | . 36 24 Core Hits 23 | . 13 10 Critical Kills . | . . . Critical Parts Destroyed . | . . . Critical Strikes 2 | . 2 . Burn 2 | . 2 . Melee Attacks . | . . . Impact . | . . . Slashing . | . . . Piercing . | . . . Sneak Attacks . | . . . Combat Hostiles . | . . . Follow-up Attacks . | . . . Damage Inflicted 875 | . 511 364 Guns 805 | . 511 294 Cannons 70 | . . 70 Explosions . | . . . Melee . | . . . Ramming . | . . . Kinetic 730 | . 436 294 Thermal 145 | . 75 70 Explosive . | . . . Electromagnetic . | . . . Impact . | . . . Slashing . | . . . Piercing . | . . . Highest Corruption . | . . . Average Corruption . | . . . Corruption Purged . | . . . Corruption Blocked . | . . . Overload Shots . | . . . Overflow Damage . | . . . Projectiles . | . . . Explosions . | . . . Melee . | . . . Knockbacks . | . . . Impact . | . . . Kinetic . | . . . Secondary . | . . . Self-Inflicted Damage . | . . . Shots . | . . . Rammed . | . . . Targets Rammed . | . . . Kicked . | . . . Crushed . | . . . Highest Temperature 63 | . 63 13 Average Temperature 18 | . 19 9 Received Heat Transfer 192 | . 102 90 Siege Activations . | . . . Robots Corrupted . | . . . Combat Hostiles . | . . . Parts Fried . | . . . Impact Corruptions . | . . . Robots Melted . | . . . Combat Hostiles . | . . . Parts Melted 2 | . 2 . Heat Transferred 518 | . 370 148 Parts Sabotaged . | . . . Parts Stolen . | . . . Parts Stripped . | . . . Power Chain Reactions . | . . . Alert | -11 -10 -10 ------- Run | Yrd Mat Sub Peak Influence 136 | . 136 . Initial . | . . . Average 68 | . 74 . Maximum Alert Level . | . . . Low Security (%) 100 | 100 100 . Level 1 . | . . . Level 2 . | . . . Level 3 . | . . . Level 4 . | . . . Level 5 . | . . . High Security . | . . . Max Security . | . . . Squads Dispatched 3 | . 3 . Investigation 1 | . 1 . Extermination . | . . . Reinforcement 2 | . 2 . Assault . | . . . Garrison . | . . . Intercept . | . . . Searches Triggered . | . . . Construction Impeded . | . . . Haulers Reinforced . | . . . Active Scanning Responses . | . . . Cargo Convoy Interrupts . | . . . Stealth | -11 -10 -10 --------- Run | Yrd Mat Sub Distress Signals 2 | . 2 . Communications Jammed . | . . . Distress Signals . | . . . Times Spotted 21 | . 12 9 Peak Tracking Total 5 | . 5 5 Tactical Retreats . | . . . Traps | -11 -10 -10 ------- Run | Yrd Mat Sub Traps Triggered 2 | . 2 . Indirectly . | . . . Trap Hack Attempts . | . . . Triggered . | . . . Disarmed . | . . . Reprogrammed . | . . . Reused . | . . . Traps Extracted . | . . . Installed . | . . . Triggered . | . . . Machines | -11 -10 -10 ---------- Run | Yrd Mat Sub Machines Disabled 1 | . 1 . Max in Single Turn 1 | . 1 . Machines Repaired . | . . . Machines Dismantled . | . . . Machines Sabotaged . | . . . Overloaded Fab Kills . | . . . Hacking | -11 -10 -10 --------- Run | Yrd Mat Sub Machines Accessed 5 | . 5 . Terminals 4 | . 4 . Fabricators . | . . . Repair Stations 1 | . 1 . Recycling Units . | . . . Scanalyzers . | . . . Garrison Access . | . . . Total Hacks 12 | . 12 . Successful 9 | . 9 . Failed 3 | . 3 . Catastrophic . | . . . Database Lockouts . | . . . Manual . | . . . Terminals 8 | . 8 . Fabricators . | . . . Repair Stations 4 | . 4 . Recycling Units . | . . . Scanalyzers . | . . . Garrison Access . | . . . Terminal Hacks 5 | . 5 . Record 1 | . 1 . Prototype ID Bank 1 | . 1 . Alert Level 1 | . 1 . Unreport Threat 1 | . 1 . Locate Traps 1 | . 1 . Fabricator Hacks . | . . . Repair Station Hacks 4 | . 4 . Scan Component 2 | . 2 . Repair 2 | . 2 . Recycling Unit Hacks . | . . . Scanalyzer . | . . . Garrison Access Hacks . | . . . Unauthorized Hacks . | . . . Terminals . | . . . Fabricators . | . . . Repair Stations . | . . . Recycling Units . | . . . Scanalyzers . | . . . Garrison Access . | . . . Data Cores Recovered . | . . . Used . | . . . Hacking Detections 4 | . 4 . Full Trace Events 1 | . 1 . Feedback Events . | . . . Feedback Blocked . | . . . Robot Schematics Acquired . | . . . Robots Built . | . . . Authchips . | . . . Time . | . . . Total Robot Build Rating . | . . . Part Schematics Acquired . | . . . Parts Built . | . . . Authchips . | . . . Time . | . . . Total Part Build Rating . | . . . Parts Repaired 2 | . 2 . Time 64 | . 64 . Parts Recycled . | . . . Recycled Matter . | . . . Retrieved Matter . | . . . Retrieved Components . | . . . Parts Scanalyzed . | . . . Part Schematics Acquired . | . . . Parts Damaged . | . . . Bothacking | -11 -10 -10 ------------ Run | Yrd Mat Sub Used RIF Installer . | . . . Robots Hacked . | . . . Non-combat . | . . . Combat . | . . . Robot Hacks Applied . | . . . Relay Couplers Released . | . . . Fabnet Peak Effective % . | . . . Robots Rewired . | . . . Allies Hacked . | . . . Hacks Repelled . | . . . Allies | -11 -10 -10 -------- Run | Yrd Mat Sub Total Allies . | . . . Largest Group . | . . . Highest-Rated Group . | . . . Highest-Rated Ally . | . . . Total Orders . | . . . Ally Attacks . | . . . Total Damage . | . . . Kills . | . . . Allies Corrupted . | . . . Allies Melted . | . . . Intel | -11 -10 -10 ------- Run | Yrd Mat Sub Robot Analysis Total . | . . . Derelict Logs Recovered 1 | . . 1 Drone Launches . | . . . Drone Recoveries . | . . . Exploration | -11 -10 -10 ------------- Run | Yrd Mat Sub Turns Passed 835 | 59 647 129 Spaces Moved 595 | 50 472 73 Core 2 | 2 . . Treads . | . . . Legs . | . . . Wheels 593 | 48 472 73 Hover . | . . . Flight . | . . . Fastest Speed 50 | 50 90 100 Average Speed 91 | 88 90 100 Slowest Speed 115 | 90 115 100 Overloaded Moves . | . . . Propulsion Burnouts . | . . . Robots Hopped . | . . . Cave-ins Triggered . | . . . Exploration Rate (%) 21 | 4 56 4 Regions Visited 2 Branch Regions 1 Pre-discovered Areas . | . . . Known Exits Taken 1 | . 1 . Unknown Exits Taken 1 | 1 . . Scrap Searched . | . . . Spaces Dug . | . . . Terrain Destroyed . | . . . Melee . | . . . Projectile . | . . . AOE . | . . . Terrain Rammed . | . . . Walls Destroyed . | . . . Machines Disabled . | . . . Actions | -11 -10 -10 --------- Run | Yrd Mat Sub Total 793 | 62 631 100 Wait 93 | . 91 2 Move 593 | 49 471 73 Hop . | . . . Pick Up 18 | 5 13 . Fast Attach 9 | 5 4 . Attach 3 | 1 1 1 Detach . | . . . Swap 7 | 1 6 . Drop 12 | 1 10 1 Fire 58 | . 35 23 Melee . | . . . Ram . | . . . Kick . | . . . Crush . | . . . Escape Stasis . | . . . Rewire . | . . . Trap . | . . . Miscellaneous . | . . . Route ------- -11/Scrapyard -10/Materials (discovered 3 exits: *Mat / [*Min] / *Sub) -10/Subcaves (discovered 1 exit: Mat) History --------- Turn | Location | Event 13 | -11/Scrapyard | Discovered new exit (range 16) 60 | -11/Scrapyard | Entered Materials 204 | -10/Materials | Discovered new exit (range 14) 310 | -10/Materials | Build established: Mutant 394 | -10/Materials | Repaired Autogun 428 | -10/Materials | Repaired Imp. Ion Engine 463 | -10/Materials | Discovered new exit (range 16) 527 | -10/Materials | Identified exit to Materials 686 | -10/Materials | Discovered new exit (range 6) 701 | -10/Materials | Identified exit to Subcaves 707 | -10/Materials | Entered Subcaves 746 | -10/Subcaves | Identified exit to Materials 755 | -10/Subcaves | Ambushed by angry Subdweller bent on revenge 816 | -10/Subcaves | Core integrity fell below 50% 829 | -10/Subcaves | Core integrity fell below 20% 836 | -10/Subcaves | Destroyed by RS-AOM(R) with Subdweller Beam Cannon Last Messages --------------- 00763_ Dropped Sensor Array. 00768_ Flight Unit fries itself beyond repair. RS-AOM(R) emerges from concealment. 00789_ Destroyed Flight Unit. 00805_ Com. Wheel destroyed. 00807_ S-10 Pest destroyed. 00807_ Switching to secondary target: S-10 Pest. 00807_ S-10 Pest destroyed. 00809_ Autogun destroyed. 00810_ S-10 Pest destroyed. 00813_ Flight Unit fries itself beyond repair. 00813_ Com. Wheel destroyed. 00815_ Flight Unit fries itself beyond repair. 00822_ 7G-082(R) destroyed. 00824_ Lgt. Ion Engine fries itself beyond repair. 00831_ 99-CSH(R) affixes Scrap Shield Fragment to Scrap Shield. 00832_ Autogun destroyed. Map ----- +----------------------------------------------------+ | ?????????????????????????????????????????????????? | | ?????????????????????????????????????????????????? | | ?????????????????????????????????????????????????? | | ?????????????????????????????????????????????????? | | ?????????????????????????????????????????????????? | | ?????????????????????????????????????????????????? | | ?????????????????????????????????????????????????? | | ??????????????????????????????????????????#??????? | | ???????????????????????????????????????#?$???????? | | ??????????????????????????????????????? %????????? | | ??????????????????????????????????####? ####?????? | | ????????????????????????????????### ##" #?????? | | ?????????????????????????????#### ## ###????? | | ?????????????????????????????# # #" " ##???? | | ???????????????????????####?## ## ## ! "##??? | | ?????????????????????### ### ## ! ""#??? | | ?????????????###????## # # ## #??? | | ?????????????# ###?## # ###??? | | ?????????????# ### # # ### ##????? | | ????????????## ## ##### #### # ## ## | | ????????????# ## #???## ###??# | | ????????????# #????## ##????##### | | ????????????# ## ##????####??????????# """ | | ????????????# ###### #??##???????????????####### | | ????????????## #????# ### ##????????????????????? | | ?????????????###????# #@ ##???????????????????? | | ????????????????????# R= #???????????????????? | | ????????????????????## R #??????????????????? | | ?????????????????????### #??????????????????? | | ???????????????????????#% #??????????????????? | | ??????????????????????? ##??????????????????? | | ??????????????????????? ##???????????????????? | | ??????????????????